[Event "Titled Tuesday Blitz December 7 2021"]
[White "Nazaretyan, Tigran"]
[Black "Rakhmanov, Aleksandr"]
[WhiteFideId "24162345"]
[BlackFideId "4173708"]
[WhiteElo "2192"]
[BlackElo "2500"]
[Result "1/2-1/2"]
[Round "11"]
[TimeControl "180+1"]
[Date "2021.12.07"]
[WhiteClock "0:00:11"]
[BlackClock "0:00:14"]

1. d4 {[%clk 0:03:00]}  Nf6 {[%clk 0:02:51]} 2. c4 {[%clk 0:02:58]}  d6 {[%clk 0:02:51]} 3. Nf3 {[%clk 0:02:58]}  g6 {[%clk 0:02:50]} 4. Nc3 {[%clk 0:02:58]}  Bf5 {[%clk 0:02:51]} 5. Ng5 {[%clk 0:02:57]}  Bg7 {[%clk 0:02:48]} 6. e4 {[%clk 0:02:57]}  Bg4 {[%clk 0:02:49]} 7. Be2 {[%clk 0:02:54]}  Bxe2 {[%clk 0:02:49]} 8. Qxe2 {[%clk 0:02:54]}  O-O {[%clk 0:02:48]} 9. O-O {[%clk 0:02:53]}  Nc6 {[%clk 0:02:47]} 10. d5 {[%clk 0:02:49]}  Nd4 {[%clk 0:02:47]} 11. Qd3 {[%clk 0:02:46]}  c5 {[%clk 0:02:47]} 12. Nf3 {[%clk 0:02:39]}  Ng4 {[%clk 0:02:46]} 13. Ne2 {[%clk 0:02:28]}  Nxf3+ {[%clk 0:02:42]} 14. Qxf3 {[%clk 0:02:27]}  Ne5 {[%clk 0:02:43]} 15. Qb3 {[%clk 0:02:25]}  b5 {[%clk 0:02:34]} 16. cxb5 {[%clk 0:02:22]}  a6 {[%clk 0:02:33]} 17. f4 {[%clk 0:02:18]}  c4 {[%clk 0:02:32]} 18. Qc2 {[%clk 0:02:15]}  Qb6+ {[%clk 0:02:21]} 19. Kh1 {[%clk 0:02:12]}  Nd3 {[%clk 0:02:21]} 20. Ng1 {[%clk 0:01:34]}  axb5 {[%clk 0:02:17]} 21. Nf3 {[%clk 0:01:30]}  Rfc8 {[%clk 0:01:16]} 22. Qe2 {[%clk 0:01:20]}  Qb7 {[%clk 0:00:57]} 23. f5 {[%clk 0:01:17]}  Qd7 {[%clk 0:00:53]} 24. h3 {[%clk 0:01:06]}  b4 {[%clk 0:00:47]} 25. Ng5 {[%clk 0:00:51]}  Nxc1 {[%clk 0:00:42]} 26. Raxc1 {[%clk 0:00:48]}  Rxa2 {[%clk 0:00:41]} 27. fxg6 {[%clk 0:00:46]}  fxg6 {[%clk 0:00:39]} 28. Ne6 {[%clk 0:00:45]}  Rxb2 {[%clk 0:00:33]} 29. Qf3 {[%clk 0:00:39]}  Bf6 {[%clk 0:00:32]} 30. g4 {[%clk 0:00:38]}  Qe8 {[%clk 0:00:23]} 31. g5 {[%clk 0:00:37]}  Be5 {[%clk 0:00:23]} 32. Rxc4 {[%clk 0:00:34]}  Rb1 {[%clk 0:00:18]} 33. Rxb1 {[%clk 0:00:27]}  Rxc4 {[%clk 0:00:18]} 34. Rf1 {[%clk 0:00:26]}  Rc8 {[%clk 0:00:17]} 35. h4 {[%clk 0:00:26]}  Rb8 {[%clk 0:00:16]} 36. Nc7 {[%clk 0:00:21]}  Qf8 {[%clk 0:00:15]} 37. Qg2 {[%clk 0:00:19]}  Qxf1+ {[%clk 0:00:11]} 38. Qxf1 {[%clk 0:00:19]}  b3 {[%clk 0:00:12]} 39. Na6 {[%clk 0:00:16]}  Ra8 {[%clk 0:00:12]} 40. Qb5 {[%clk 0:00:15]}  b2 {[%clk 0:00:12]} 41. Kg2 {[%clk 0:00:14]}  Rxa6 {[%clk 0:00:12]} 42. Qe8+ {[%clk 0:00:13]}  Kg7 {[%clk 0:00:11]} 43. Qxe7+ {[%clk 0:00:14]}  Kg8 {[%clk 0:00:12]} 44. Qd8+ {[%clk 0:00:13]}  Kf7 {[%clk 0:00:11]} 45. Qd7+ {[%clk 0:00:13]}  Kf8 {[%clk 0:00:12]} 46. Qd8+ {[%clk 0:00:13]}  Kf7 {[%clk 0:00:12]} 47. Qd7+ {[%clk 0:00:13]}  Kg8 {[%clk 0:00:12]} 48. Qe8+ {[%clk 0:00:14]}  Kg7 {[%clk 0:00:13]} 49. Qe7+ {[%clk 0:00:14]}  Kg8 {[%clk 0:00:13]} 50. Qe8+ {[%clk 0:00:14]}  Kg7 {[%clk 0:00:14]} 51. Qe7+ {[%clk 0:00:11]} 1/2-1/2


[Site "https://www.chess.com"]

[Event "Titled Tuesday Blitz December 7 2021"]
[White "Orlov, Georgi"]
[Black "Maksimovic, Bojan"]
[WhiteFideId "2011271"]
[BlackFideId "14408120"]
[WhiteElo "2477"]
[BlackElo "2458"]
[Result "0-1"]
[Round "11"]
[TimeControl "180+1"]
[Date "2021.12.07"]
[WhiteClock "0:00:02"]
[BlackClock "0:00:31"]

1. d4 {[%clk 0:03:00]}  Nf6 {[%clk 0:02:59]} 2. Nf3 {[%clk 0:03:01]}  e6 {[%clk 0:02:58]} 3. c4 {[%clk 0:03:00]}  b6 {[%clk 0:02:54]} 4. g3 {[%clk 0:02:58]}  Bb7 {[%clk 0:02:53]} 5. Bg2 {[%clk 0:02:56]}  Be7 {[%clk 0:02:50]} 6. O-O {[%clk 0:02:55]}  O-O {[%clk 0:02:50]} 7. d5 {[%clk 0:02:52]}  exd5 {[%clk 0:02:47]} 8. Nh4 {[%clk 0:02:50]}  Re8 {[%clk 0:02:43]} 9. cxd5 {[%clk 0:02:48]}  Bf8 {[%clk 0:02:44]} 10. Nf5 {[%clk 0:02:42]}  Na6 {[%clk 0:02:40]} 11. Nc3 {[%clk 0:02:40]}  d6 {[%clk 0:02:39]} 12. e4 {[%clk 0:02:26]}  Nc5 {[%clk 0:02:36]} 13. Re1 {[%clk 0:02:26]}  Bc8 {[%clk 0:02:35]} 14. Nd4 {[%clk 0:02:23]}  Bd7 {[%clk 0:02:33]} 15. b4 {[%clk 0:02:19]}  Nb7 {[%clk 0:02:31]} 16. Nc6 {[%clk 0:01:59]}  Qc8 {[%clk 0:02:31]} 17. Bg5 {[%clk 0:01:49]}  Ng4 {[%clk 0:02:22]} 18. Rc1 {[%clk 0:01:39]}  Ne5 {[%clk 0:02:19]} 19. Nb5 {[%clk 0:01:37]}  Nd8 {[%clk 0:02:12]} 20. Nbd4 {[%clk 0:01:05]}  Bxc6 {[%clk 0:02:03]} 21. Bxd8 {[%clk 0:00:55]}  Bxd5 {[%clk 0:01:50]} 22. Bxc7 {[%clk 0:00:54]}  Bc4 {[%clk 0:01:49]} 23. f4 {[%clk 0:00:42]}  Qxc7 {[%clk 0:01:48]} 24. fxe5 {[%clk 0:00:40]}  dxe5 {[%clk 0:01:49]} 25. Nf5 {[%clk 0:00:35]}  b5 {[%clk 0:01:38]} 26. Qg4 {[%clk 0:00:29]}  Re6 {[%clk 0:01:32]} 27. Bf1 {[%clk 0:00:25]}  Rg6 {[%clk 0:01:27]} 28. Qf3 {[%clk 0:00:24]}  Bxb4 {[%clk 0:01:27]} 29. Red1 {[%clk 0:00:18]}  Re8 {[%clk 0:01:19]} 30. a4 {[%clk 0:00:16]}  a6 {[%clk 0:01:19]} 31. axb5 {[%clk 0:00:14]}  axb5 {[%clk 0:01:19]} 32. Ne3 {[%clk 0:00:14]}  Rf6 {[%clk 0:01:16]} 33. Nf5 {[%clk 0:00:13]}  Qb6+ {[%clk 0:01:12]} 34. Kh1 {[%clk 0:00:12]}  Be6 {[%clk 0:01:10]} 35. Rb1 {[%clk 0:00:08]}  Bf8 {[%clk 0:01:06]} 36. Rxb5 {[%clk 0:00:08]}  Qc6 {[%clk 0:01:04]} 37. Ra5 {[%clk 0:00:06]}  Rxf5 {[%clk 0:01:02]} 38. Ra6 {[%clk 0:00:07]}  Rf4 {[%clk 0:01:01]} 39. gxf4 {[%clk 0:00:05]}  Qc8 {[%clk 0:00:48]} 40. f5 {[%clk 0:00:05]}  Bc4 {[%clk 0:00:48]} 41. Raa1 {[%clk 0:00:04]}  Bxf1 {[%clk 0:00:45]} 42. Rxf1 {[%clk 0:00:03]}  Be7 {[%clk 0:00:43]} 43. Rg1 {[%clk 0:00:04]}  Bf6 {[%clk 0:00:40]} 44. Qg3 {[%clk 0:00:04]}  h6 {[%clk 0:00:40]} 45. Ra2 {[%clk 0:00:04]}  Kh7 {[%clk 0:00:38]} 46. Rag2 {[%clk 0:00:03]}  Qc6 {[%clk 0:00:37]} 47. Qf3 {[%clk 0:00:03]}  Rc8 {[%clk 0:00:35]} 48. Rg4 {[%clk 0:00:03]}  Qc2 {[%clk 0:00:32]} 49. Qh3 {[%clk 0:00:03]}  Rc3 {[%clk 0:00:31]} 50. R4g3 {[%clk 0:00:02]}  Qxe4+ {[%clk 0:00:31]} 51. R1g2 {[%clk 0:00:02]}  Rc1# {[%clk 0:00:31]} 0-1


[Site "https://www.chess.com"]

[Event "Titled Tuesday Blitz December 7 2021"]
[White "Sadykov, Ramil"]
[Black "Martin, Lewis"]
[WhiteFideId "24113590"]
[BlackFideId "410551"]
[WhiteElo "2300"]
[BlackElo "2145"]
[Result "1-0"]
[Round "11"]
[TimeControl "180+1"]
[Date "2021.12.07"]
[WhiteClock "0:00:08"]
[BlackClock "0:00:06"]

1. e4 {[%clk 0:03:00]}  c5 {[%clk 0:02:59]} 2. Nc3 {[%clk 0:03:01]}  Nc6 {[%clk 0:02:59]} 3. g3 {[%clk 0:03:01]}  g6 {[%clk 0:02:58]} 4. Bg2 {[%clk 0:03:02]}  Bg7 {[%clk 0:02:59]} 5. d3 {[%clk 0:03:02]}  e6 {[%clk 0:02:58]} 6. Be3 {[%clk 0:03:03]}  Nd4 {[%clk 0:02:58]} 7. Qd2 {[%clk 0:03:03]}  Ne7 {[%clk 0:02:58]} 8. Nd1 {[%clk 0:03:02]}  d6 {[%clk 0:02:55]} 9. c3 {[%clk 0:03:02]}  Ndc6 {[%clk 0:02:54]} 10. Bh6 {[%clk 0:03:03]}  O-O {[%clk 0:02:53]} 11. h4 {[%clk 0:03:03]}  Bxh6 {[%clk 0:02:41]} 12. Qxh6 {[%clk 0:03:04]}  Kh8 {[%clk 0:02:41]} 13. h5 {[%clk 0:03:00]}  Ng8 {[%clk 0:02:42]} 14. Qd2 {[%clk 0:02:56]}  g5 {[%clk 0:02:40]} 15. Ne3 {[%clk 0:02:56]}  h6 {[%clk 0:02:35]} 16. O-O-O {[%clk 0:02:55]}  Rb8 {[%clk 0:02:32]} 17. f4 {[%clk 0:02:53]}  f6 {[%clk 0:02:30]} 18. Ne2 {[%clk 0:02:40]}  Bd7 {[%clk 0:02:29]} 19. d4 {[%clk 0:02:40]}  cxd4 {[%clk 0:02:27]} 20. Nxd4 {[%clk 0:02:41]}  Nxd4 {[%clk 0:02:27]} 21. Qxd4 {[%clk 0:02:41]}  Bc6 {[%clk 0:02:13]} 22. Qxd6 {[%clk 0:02:35]}  Qxd6 {[%clk 0:02:12]} 23. Rxd6 {[%clk 0:02:36]}  Rfe8 {[%clk 0:02:09]} 24. Rhd1 {[%clk 0:02:34]}  Kg7 {[%clk 0:02:06]} 25. f5 {[%clk 0:02:24]}  Kf7 {[%clk 0:02:02]} 26. Bf1 {[%clk 0:02:11]}  exf5 {[%clk 0:01:55]} 27. Bc4+ {[%clk 0:02:10]}  Kg7 {[%clk 0:01:50]} 28. Nxf5+ {[%clk 0:02:10]}  Kh7 {[%clk 0:01:51]} 29. Bxg8+ {[%clk 0:02:07]}  Kxg8 {[%clk 0:01:44]} 30. Rxf6 {[%clk 0:02:06]}  Rxe4 {[%clk 0:01:43]} 31. Rg6+ {[%clk 0:02:02]}  Kh8 {[%clk 0:01:36]} 32. Rxh6+ {[%clk 0:02:00]}  Kg8 {[%clk 0:01:36]} 33. Rg6+ {[%clk 0:01:58]}  Kh8 {[%clk 0:01:36]} 34. Nd6 {[%clk 0:01:52]}  Re7 {[%clk 0:01:27]} 35. Rf1 {[%clk 0:01:52]}  Bd5 {[%clk 0:01:21]} 36. b3 {[%clk 0:01:42]}  Rg8 {[%clk 0:01:18]} 37. Rh6+ {[%clk 0:01:37]}  Rh7 {[%clk 0:01:17]} 38. Rxh7+ {[%clk 0:01:35]}  Kxh7 {[%clk 0:01:17]} 39. c4 {[%clk 0:01:36]}  Bg2 {[%clk 0:00:51]} 40. Rf6 {[%clk 0:01:33]}  b6 {[%clk 0:00:43]} 41. Nf5 {[%clk 0:01:18]}  Re8 {[%clk 0:00:33]} 42. Rh6+ {[%clk 0:01:15]}  Kg8 {[%clk 0:00:33]} 43. Rg6+ {[%clk 0:01:15]}  Kh7 {[%clk 0:00:31]} 44. Rg7+ {[%clk 0:01:13]}  Kh8 {[%clk 0:00:30]} 45. Rxg5 {[%clk 0:01:14]}  Re2 {[%clk 0:00:29]} 46. Nd4 {[%clk 0:01:06]}  Rxa2 {[%clk 0:00:28]} 47. g4 {[%clk 0:00:55]}  Be4 {[%clk 0:00:26]} 48. Re5 {[%clk 0:00:52]}  Bd3 {[%clk 0:00:26]} 49. Re3 {[%clk 0:00:47]}  Bh7 {[%clk 0:00:24]} 50. g5 {[%clk 0:00:47]}  Rh2 {[%clk 0:00:22]} 51. g6 {[%clk 0:00:46]}  Bg8 {[%clk 0:00:22]} 52. Re5 {[%clk 0:00:43]}  Kg7 {[%clk 0:00:21]} 53. Rf5 {[%clk 0:00:33]}  a5 {[%clk 0:00:16]} 54. Nb5 {[%clk 0:00:24]}  Be6 {[%clk 0:00:11]} 55. Re5 {[%clk 0:00:11]}  Bg4 {[%clk 0:00:11]} 56. Nd6 {[%clk 0:00:09]}  Bxh5 {[%clk 0:00:10]} 57. Re7+ {[%clk 0:00:08]}  Kxg6 {[%clk 0:00:09]} 58. Rb7 {[%clk 0:00:08]}  Kg5 {[%clk 0:00:08]} 59. Rxb6 {[%clk 0:00:09]}  Kf4 {[%clk 0:00:07]} 60. Nb5 {[%clk 0:00:08]}  Ke3 {[%clk 0:00:06]} 61. Rd6 {[%clk 0:00:09]}  Bf3 {[%clk 0:00:05]} 62. Nc3 {[%clk 0:00:09]}  Bg4 {[%clk 0:00:02]} 63. Nd5+ {[%clk 0:00:06]}  Kd4 {[%clk 0:00:02]} 64. Nf6+ {[%clk 0:00:06]}  Kc5 {[%clk 0:00:03]} 65. Rd5+ {[%clk 0:00:05]}  Kb4 {[%clk 0:00:03]} 66. Nxg4 {[%clk 0:00:04]}  Rg2 {[%clk 0:00:02]} 67. Ne3 {[%clk 0:00:03]}  Re2 {[%clk 0:00:02]} 68. Nc2+ {[%clk 0:00:03]}  Kc3 {[%clk 0:00:01]} 69. Ne1 {[%clk 0:00:01]}  Rxe1+ {[%clk 0:00:01]} 70. Rd1 {[%clk 0:00:01]}  Re5 {[%clk 0:00:01]} 71. Rf1 {[%clk 0:00:01]}  Kxb3 {[%clk 0:00:01]} 72. Rf4 {[%clk 0:00:02]}  Rc5 {[%clk 0:00:01]} 73. Kd2 {[%clk 0:00:03]}  Rxc4 {[%clk 0:00:01]} 74. Rf3+ {[%clk 0:00:04]}  Rc3 {[%clk 0:00:02]} 75. Rxc3+ {[%clk 0:00:03]}  Kb2 {[%clk 0:00:03]} 76. Rc2+ {[%clk 0:00:03]}  Kb3 {[%clk 0:00:02]} 77. Kc1 {[%clk 0:00:04]}  a4 {[%clk 0:00:03]} 78. Kb1 {[%clk 0:00:04]}  a3 {[%clk 0:00:04]} 79. Ra2 {[%clk 0:00:05]}  Kb4 {[%clk 0:00:04]} 80. Ka1 {[%clk 0:00:06]}  Kb3 {[%clk 0:00:05]} 81. Rh2 {[%clk 0:00:07]}  Kb4 {[%clk 0:00:06]} 82. Rh3 {[%clk 0:00:07]}  Ka4 {[%clk 0:00:06]} 83. Ka2 {[%clk 0:00:08]}  Kb4 {[%clk 0:00:06]} 84. Rh4+ {[%clk 0:00:08]} 1-0


[Site "https://www.chess.com"]

[Event "Titled Tuesday Blitz December 7 2021"]
[White "Samadov, Read"]
[Black "Pranav, V"]
[WhiteFideId "13417444"]
[BlackFideId "25060783"]
[WhiteElo "2084"]
[BlackElo "2351"]
[Result "0-1"]
[Round "11"]
[TimeControl "180+1"]
[Date "2021.12.07"]
[WhiteClock "0:00:01"]
[BlackClock "0:00:10"]

1. d4 {[%clk 0:03:00]}  Nf6 {[%clk 0:03:00]} 2. c4 {[%clk 0:03:00]}  e6 {[%clk 0:02:59]} 3. Nf3 {[%clk 0:03:00]}  b6 {[%clk 0:02:59]} 4. a3 {[%clk 0:02:59]}  Ba6 {[%clk 0:02:59]} 5. Qc2 {[%clk 0:02:59]}  c5 {[%clk 0:02:57]} 6. d5 {[%clk 0:02:59]}  exd5 {[%clk 0:02:57]} 7. cxd5 {[%clk 0:02:57]}  d6 {[%clk 0:02:56]} 8. Nc3 {[%clk 0:02:56]}  Nbd7 {[%clk 0:02:56]} 9. Bg5 {[%clk 0:02:32]}  Be7 {[%clk 0:02:55]} 10. e4 {[%clk 0:02:22]}  Bxf1 {[%clk 0:02:54]} 11. Kxf1 {[%clk 0:02:23]}  O-O {[%clk 0:02:54]} 12. g3 {[%clk 0:02:23]}  h6 {[%clk 0:02:52]} 13. Bf4 {[%clk 0:02:19]}  Nh5 {[%clk 0:02:45]} 14. Be3 {[%clk 0:02:19]}  Re8 {[%clk 0:02:43]} 15. Kg2 {[%clk 0:02:19]}  Bf6 {[%clk 0:02:43]} 16. Rhe1 {[%clk 0:02:17]}  a6 {[%clk 0:02:40]} 17. a4 {[%clk 0:02:17]}  Bxc3 {[%clk 0:02:35]} 18. bxc3 {[%clk 0:02:12]}  Nhf6 {[%clk 0:02:34]} 19. Bf4 {[%clk 0:02:11]}  Nf8 {[%clk 0:02:33]} 20. c4 {[%clk 0:02:08]}  Ng6 {[%clk 0:02:32]} 21. Bd2 {[%clk 0:02:04]}  Nd7 {[%clk 0:02:31]} 22. Bc3 {[%clk 0:02:03]}  Rb8 {[%clk 0:02:23]} 23. Rab1 {[%clk 0:02:01]}  Ndf8 {[%clk 0:02:21]} 24. h4 {[%clk 0:02:00]}  Qd7 {[%clk 0:02:18]} 25. Nh2 {[%clk 0:01:33]}  Ne5 {[%clk 0:02:14]} 26. Bxe5 {[%clk 0:01:23]}  Rxe5 {[%clk 0:02:15]} 27. Nf3 {[%clk 0:01:22]}  Ree8 {[%clk 0:02:13]} 28. e5 {[%clk 0:01:23]}  Qg4 {[%clk 0:01:53]} 29. Nh2 {[%clk 0:01:12]}  Qd7 {[%clk 0:01:52]} 30. Nf3 {[%clk 0:01:10]}  Re7 {[%clk 0:01:48]} 31. exd6 {[%clk 0:01:05]}  Rxe1 {[%clk 0:01:47]} 32. Rxe1 {[%clk 0:01:05]}  Qxd6 {[%clk 0:01:47]} 33. Qf5 {[%clk 0:01:04]}  b5 {[%clk 0:01:33]} 34. axb5 {[%clk 0:01:03]}  axb5 {[%clk 0:01:34]} 35. Ne5 {[%clk 0:00:57]}  Rb7 {[%clk 0:01:32]} 36. Rb1 {[%clk 0:00:28]}  b4 {[%clk 0:01:26]} 37. Nd3 {[%clk 0:00:28]}  Re7 {[%clk 0:01:25]} 38. Ra1 {[%clk 0:00:25]}  b3 {[%clk 0:01:05]} 39. Rb1 {[%clk 0:00:22]}  Rb7 {[%clk 0:01:05]} 40. Qe5 {[%clk 0:00:20]}  Qb6 {[%clk 0:00:58]} 41. d6 {[%clk 0:00:17]}  Ne6 {[%clk 0:00:52]} 42. Qd5 {[%clk 0:00:17]}  Rd7 {[%clk 0:00:50]} 43. Qa8+ {[%clk 0:00:13]}  Nf8 {[%clk 0:00:50]} 44. Rxb3 {[%clk 0:00:07]}  Qxd6 {[%clk 0:00:41]} 45. Nf4 {[%clk 0:00:06]}  Rd8 {[%clk 0:00:35]} 46. Qf3 {[%clk 0:00:05]}  Qa6 {[%clk 0:00:31]} 47. Rc3 {[%clk 0:00:03]}  Rd4 {[%clk 0:00:30]} 48. Qe2 {[%clk 0:00:02]}  Qb7+ {[%clk 0:00:25]} 49. Qf3 {[%clk 0:00:02]}  Qb1 {[%clk 0:00:19]} 50. Nd5 {[%clk 0:00:01]}  Ng6 {[%clk 0:00:12]} 51. Kh2 {[%clk 0:00:02]}  Ne5 {[%clk 0:00:12]} 52. Qe2 {[%clk 0:00:01]}  Ng4+ {[%clk 0:00:10]} 53. Kg2 {[%clk 0:00:01]}  Re4 {[%clk 0:00:10]} 0-1


[Site "https://www.chess.com"]

[Event "Titled Tuesday Blitz December 7 2021"]
[White "Saraci, Nderim"]
[Black "Arencibia Monduy, Antonio"]
[WhiteFideId "6351921"]
[BlackFideId "3507939"]
[WhiteElo "2479"]
[BlackElo "2635"]
[Result "0-1"]
[Round "11"]
[TimeControl "180+1"]
[Date "2021.12.07"]
[WhiteClock "0:00:01"]
[BlackClock "0:00:15"]

1. Nf3 {[%clk 0:02:48]}  Nf6 {[%clk 0:02:59]} 2. g3 {[%clk 0:02:46]}  d5 {[%clk 0:02:59]} 3. Bg2 {[%clk 0:02:46]}  Nc6 {[%clk 0:03:00]} 4. d4 {[%clk 0:02:43]}  Bf5 {[%clk 0:02:59]} 5. O-O {[%clk 0:02:44]}  e6 {[%clk 0:03:00]} 6. c4 {[%clk 0:02:44]}  Be7 {[%clk 0:02:53]} 7. Nc3 {[%clk 0:02:43]}  O-O {[%clk 0:02:53]} 8. b3 {[%clk 0:02:43]}  Ne4 {[%clk 0:02:51]} 9. Bb2 {[%clk 0:02:42]}  Nxc3 {[%clk 0:02:51]} 10. Bxc3 {[%clk 0:02:43]}  a5 {[%clk 0:02:47]} 11. Qd2 {[%clk 0:02:42]}  a4 {[%clk 0:02:46]} 12. cxd5 {[%clk 0:02:37]}  exd5 {[%clk 0:02:41]} 13. b4 {[%clk 0:02:34]}  a3 {[%clk 0:02:17]} 14. Rfd1 {[%clk 0:02:19]}  Na7 {[%clk 0:02:15]} 15. Qf4 {[%clk 0:02:01]}  Be6 {[%clk 0:01:44]} 16. h4 {[%clk 0:01:55]}  Nb5 {[%clk 0:01:44]} 17. Be1 {[%clk 0:01:55]}  Qd6 {[%clk 0:01:38]} 18. Qe3 {[%clk 0:01:48]}  Rfe8 {[%clk 0:01:35]} 19. Qd3 {[%clk 0:01:45]}  c6 {[%clk 0:01:17]} 20. Bd2 {[%clk 0:01:36]}  g6 {[%clk 0:01:10]} 21. Rac1 {[%clk 0:01:10]}  Bf5 {[%clk 0:01:10]} 22. Qb3 {[%clk 0:01:10]}  Bf8 {[%clk 0:01:02]} 23. Re1 {[%clk 0:00:53]}  h6 {[%clk 0:00:43]} 24. e3 {[%clk 0:00:46]}  Qf6 {[%clk 0:00:41]} 25. Ne5 {[%clk 0:00:43]}  Rad8 {[%clk 0:00:33]} 26. Bf1 {[%clk 0:00:41]}  Nd6 {[%clk 0:00:30]} 27. Qxa3 {[%clk 0:00:37]}  Ne4 {[%clk 0:00:30]} 28. Qb2 {[%clk 0:00:35]}  Bd6 {[%clk 0:00:24]} 29. Bc3 {[%clk 0:00:34]}  Bc8 {[%clk 0:00:23]} 30. Bg2 {[%clk 0:00:31]}  Qf5 {[%clk 0:00:22]} 31. b5 {[%clk 0:00:27]}  c5 {[%clk 0:00:20]} 32. Nd3 {[%clk 0:00:23]}  c4 {[%clk 0:00:19]} 33. Nc5 {[%clk 0:00:18]}  Nxg3 {[%clk 0:00:16]} 34. fxg3 {[%clk 0:00:17]}  Bxg3 {[%clk 0:00:16]} 35. Rf1 {[%clk 0:00:10]}  Qg4 {[%clk 0:00:17]} 36. Rf3 {[%clk 0:00:10]}  Qxh4 {[%clk 0:00:17]} 37. Bh1 {[%clk 0:00:09]}  Bg4 {[%clk 0:00:16]} 38. Qg2 {[%clk 0:00:08]}  Bxf3 {[%clk 0:00:16]} 39. Qxf3 {[%clk 0:00:09]}  Rd6 {[%clk 0:00:15]} 40. Bg2 {[%clk 0:00:07]}  Rf6 {[%clk 0:00:15]} 41. Nd7 {[%clk 0:00:01]}  Qh2+ {[%clk 0:00:15]} 0-1


[Site "https://www.chess.com"]